lending/lending_fUSD_20240110
["ID","MTS","AMOUNT","RATE_DAILY","PERIOD"]
[311113207,1704915032536,-186.70353228,0.0002672,7]
[311113208,1704915032551,-19.29646772,0.0002672,7]
[311113209,1704915032560,-250.0,0.000274,2]
[311113210,1704915032569,-252.50678473,0.00027853,2]
[311113211,1704915032581,-604.98321527,0.00027853,2]
[311113212,1704915032590,-468.36503412,0.00027952,2]
[311113213,1704915032601,-2577.03728473,0.00027952,2]
[311113214,1704915032622,-1247.29746431,0.00027952,2]
[311113216,1704915032641,-7818.31021684,0.00027952,2]
[311113217,1704915032650,-343.74,0.00027971,2]
[311113218,1704915032659,-1865.63,0.00028082,2]
[311113219,1704915032669,-178.43967574,0.00028155,2]
[311113220,1704915032679,-150.0,0.00028314,2]
[311113221,1704915032689,-308.76,0.00028315,2]
[311113222,1704915032698,-150.0,0.00028452,2]
[311113224,1704915032708,-2000.0,0.0002847,2]
[311113226,1704915032717,-500.0,0.00028521,2]
[311113228,1704915032726,-166.53,0.00028546,2]
[311113230,1704915032737,-78.7291046,0.00028715,2]
[311113232,1704915032748,-261.9600003,0.00028715,2]
[311113235,1704915032767,-209.2908951,0.00028715,2]
[311113237,1704915032777,-319.64723236,0.00028832,2]
[311113239,1704915032788,-537.84276764,0.00028832,2]
[311113241,1704915032797,-500.0,0.00028874,2]
[311113243,1704915032806,-176.01,0.00029116,2]
[311113245,1704915032815,-500.0,0.00029228,2]
[311113247,1704915032824,-2871.83,0.00029261,2]
[311113249,1704915032833,-312.31723236,0.0002937,2]
[311113252,1704915032844,-31.42276764,0.0002937,2]
[311113255,1704915032852,-772.74784523,0.00029439,2]
[311113258,1704915032864,-227.25215477,0.00029439,2]
[311113261,1704915032873,-1032.0,0.00029516,2]
[311113264,1704915032882,-1032.0,0.00029516,2]
[311113267,1704915032891,-1032.0,0.00029516,2]
[311113270,1704915032900,-1032.0,0.00029516,2]
[311113273,1704915032909,-1032.0,0.00029516,2]
[311113276,1704915032918,-1032.0,0.00029516,2]
[311113279,1704915032926,-1032.0,0.00029516,2]
[311113282,1704915032936,-1032.0,0.00029516,2]
[311113285,1704915032945,-1032.0,0.00029516,2]
[311113288,1704915032955,-1032.0,0.00029516,2]
[311113291,1704915032964,-125409.0,0.00029517,2]
[311113294,1704915032973,-500.0,0.00029581,2]
[311113297,1704915032982,-176.01,0.00029664,2]
[311113299,1704915032991,-28852.967,0.00029715,2]
[311113302,1704915033000,-857.49,0.0002981,2]
[311113305,1704915033009,-3359.63528443,0.000299,2]
[311113307,1704915033021,-3359.63528439,0.000299,2]
[311113309,1704915033031,-282.7829,0.00029916,2]
[311113311,1704915033040,-30230.3365,0.00029916,2]
[311113313,1704915033049,-1185.59106656,0.00029916,4]
[311113315,1704915033058,-678.88688988,0.00029916,2]
[311113317,1704915033067,-500.0,0.00029935,2]
[311113319,1704915033076,-155.0,0.0003,2]
[311113321,1704915033085,-154.0,0.0003,2]
[311113323,1704915033094,-2743.94,0.00030006,2]
[311113325,1704915033105,-2743.94,0.00030006,2]
[311113327,1704915033114,-99355.47485739,0.00030016,2]
[311113329,1704915033126,-734.66922033,0.00030016,2]
[311113331,1704915033138,-304.81331687,0.00030016,2]
[311113334,1704915033149,-544.02,0.00030016,2]
[311113336,1704915033167,-144061.02260541,0.00030016,2]
[311113338,1704915033178,-500.0,0.00030016,2]
[311113340,1704915033188,-942.8485,0.00030016,2]
[311113342,1704915033197,-8400.2219,0.00030016,2]
[311113344,1704915033206,-804.05971105,0.00030037,2]
[311113346,1704915033216,-2740.85665269,0.00030041,2]
[311113348,1704915033225,-326.96087195,0.00030106,2]
[311113350,1704915033234,-2743.94,0.00030106,2]
[311113352,1704915033243,-2743.94,0.00030106,2]
[311113354,1704915033252,-2743.94,0.00030106,2]
[311113356,1704915033262,-2743.94,0.00030106,2]
[311113358,1704915033271,-158.1107,0.00030111,2]
[311113360,1704915033281,-6967.51647062,0.00030113,2]
[311113362,1704915033291,-2549.1186126,0.00030114,4]
[311113364,1704915033302,-580.96999094,0.00030114,2]
[311113366,1704915033311,-4398.72957174,0.00030114,4]
[311113368,1704915033321,-155.0,0.00030114,2]
[311113370,1704915033330,-865.82786024,0.00030114,2]
[311113372,1704915033340,-155.0,0.00030114,2]
[311113374,1704915033350,-154.0,0.00030116,2]
[311113376,1704915033359,-52633.80005896,0.00030116,2]
[311113378,1704915033372,-600.0,0.00030116,2]
[311113380,1704915033383,-633.69774693,0.00030116,2]
[311113383,1704915033398,-260.27783637,0.00030116,2]
[311113385,1704915033409,-1696.13836695,0.00030116,2]
[311113388,1704915033420,-1620.71715576,0.00030116,2]
[311113390,1704915033431,-6614.0253526,0.00030116,2]
[311113392,1704915033443,-297.99553905,0.00030116,2]
[311113393,1704915033453,-500.00054805,0.00030116,2]
[311113394,1704915033464,-29608.79334202,0.00030116,2]
[311113395,1704915033475,-122622.38860137,0.00030116,2]
[311113396,1704915033486,-656.44624679,0.00030116,2]
[311113397,1704915033496,-500.88494836,0.00030116,2]
[311113398,1704915033510,-911.68,0.00030116,2]
[311113732,1704915038221,-205.0,0.00023022,2]
[311113733,1704915038233,-4064.80526,0.00030116,2]
[311113734,1704915038245,-7855.49640068,0.00030116,2]
[311113735,1704915038258,-313.04217727,0.00030116,2]
[311113736,1704915038270,-4882.22827431,0.00030116,2]
[311113737,1704915038281,-2578.4216887,0.00030116,2]
[311113738,1704915038295,-1797.91698902,0.00030116,2]
[311113739,1704915038383,-47961.66162161,0.00030116,2]
[311113740,1704915038394,-155051.14730042,0.00030116,2]
[311113741,1704915038406,-122294.76891202,0.00030116,2]
[311113742,1704915038417,-182664.57481251,0.00030116,2]
[311113743,1704915038997,-678.22150474,0.00030116,2]
[311113744,1704915039061,-1086.93189934,0.00030116,2]
[311113745,1704915039119,-9094.10907792,0.00030116,2]
[311113746,1704915039131,-2349.77294999,0.00030116,2]
[311113747,1704915039143,-5136.62864425,0.00030116,2]
[311113748,1704915039167,-375.32947195,0.00030116,2]
[311113749,1704915039180,-49200.0,0.00030116,2]
[311113750,1704915039192,-646.42422695,0.00030116,2]
[311113751,1704915039205,-15897.32777646,0.00030116,2]
[311113752,1704915039215,-300.0,0.00030136,2]
[311113753,1704915039225,-300.0,0.00030136,2]
[311113754,1704915039234,-300.0,0.00030136,2]
[311113755,1704915039244,-414.19751056,0.00030136,2]
[311113757,1704915039254,-5427.33456825,0.00030137,2]
[311113760,1704915039275,-1009.50543175,0.00030137,2]
[311113762,1704915039284,-953.87055162,0.0003019,2]
[311113764,1704915039300,-366.85,0.0003019,2]
[311114174,1704915043261,-2038.91473277,0.0003019,2]
[311114176,1704915043271,-176.75885641,0.00030212,2]
[311114177,1704915043280,-500.0,0.00030288,2]
[311114178,1704915043289,-206.0,0.00030418,13]
[311114179,1704915043299,-3359.63528439,0.00030544,2]
[311114180,1704915043308,-183.88728252,0.00030596,2]
[311114182,1704915043317,-500.0,0.00030642,2]
[311114188,1704915043501,-343.74,0.00030768,2]
[311114190,1704915043512,-857.49,0.00030789,2]
[311114191,1704915043521,-3359.63528439,0.00030898,2]
[311114192,1704915043530,-151.74166099,0.000309,2]
[311114193,1704915043540,-151.74166023,0.000309,2]
[311114194,1704915043551,-151.74166023,0.000309,2]
[311114195,1704915043561,-2740.85665266,0.00030936,2]
[311114197,1704915043570,-200.0,0.0003095,3]
[311114199,1704915043579,-800.0,0.0003095,5]
[311114201,1704915043588,-549.98,0.00030979,2]
[311114203,1704915043597,-500.0,0.00030995,2]
[311114205,1704915043606,-379.3,0.00031,2]
[311114207,1704915043615,-178.43967574,0.00031028,2]
[311114209,1704915043624,-369.59,0.00031215,2]
[311114211,1704915043633,-3359.63528439,0.00031252,2]
[311114213,1704915043643,-151.74166023,0.00031268,2]
[311114215,1704915043652,-167.15,0.00031307,2]
[311114218,1704915043661,-153.84,0.00031317,2]
[311114220,1704915043671,-1185.5910665,0.00031337,5]
[311114222,1704915043680,-500.0,0.00031349,2]
[311114224,1704915043689,-369.59,0.00031379,2]
[311114226,1704915043698,-500.0,0.000315,2]
[311114228,1704915043706,-369.59,0.00031543,2]
[311114230,1704915043715,-3359.63528439,0.00031607,2]
[311114232,1704915043725,-160.42,0.00031628,2]
[311114234,1704915043734,-151.74166023,0.00031679,2]
[311114236,1704915043743,-500.0,0.00031702,2]
[311114238,1704915043752,-369.59,0.00031708,2]
[311114239,1704915043761,-804.05971102,0.00031742,2]
[311114240,1704915043769,-857.49,0.00031767,2]
[311114241,1704915043778,-260.20433,0.00031799,2]
[311114242,1704915043787,-2740.85665266,0.00031832,3]
[311114244,1704915043797,-166.87,0.00031834,2]
[311114246,1704915043806,-369.59,0.00031872,2]
[311114248,1704915043815,-3359.63528439,0.00031961,2]
[311114250,1704915043824,-2743.94,0.0003199,2]
[311114252,1704915043833,-3483.75823531,0.00031997,2]
[311114254,1704915043842,-132975.59640288,0.00032,2]
[311114256,1704915043851,-5516.657379,0.00032,2]
[311114257,1704915043862,-369.59,0.00032036,2]
[311114259,1704915043872,-500.0,0.00032056,2]
[311114261,1704915043882,-151.74166023,0.00032089,2]
[311114263,1704915043891,-343.74,0.00032167,2]
[311114265,1704915043900,-173.73,0.00032172,2]
[311114266,1704915043910,-369.59,0.00032201,2]
[311114267,1704915043919,-153.84,0.00032266,2]
[311114268,1704915043928,-3359.63528439,0.00032315,2]
[311114269,1704915043937,-678.88688985,0.00032362,2]
[311114270,1704915043947,-369.59,0.00032365,2]
[311114271,1704915043957,-160.42,0.00032372,2]
[311114272,1704915043966,-500.0,0.00032409,2]
[311114273,1704915043974,-151.74166023,0.000325,2]
[311114274,1704915043983,-369.59,0.00032529,2]
[311114275,1704915043992,-3359.63528439,0.00032669,2]
[311114276,1704915044001,-369.59,0.00032694,2]
[311114277,1704915044011,-2740.85665266,0.00032727,4]
[311114278,1704915044020,-857.49,0.00032746,2]
[311114279,1704915044029,-1185.5910665,0.00032757,6]
[311114280,1704915044038,-500.0,0.00032763,2]
[311114281,1704915044048,-369.59,0.00032858,2]
[311114282,1704915044057,-346.68,0.00032877,15]
[311114283,1704915044065,-151.74166023,0.0003291,2]
[311114284,1704915044074,-687.02354933,0.00032978,4]
[311114285,1704915044083,-2743.94,0.0003299,2]
[311114286,1704915044092,-2653.77658811,0.00032999,2]
[311114287,1704915044101,-120221.4,0.00033,7]
[311114288,1704915044109,-151.0,0.00033,7]
[311114289,1704915044119,-276.79,0.00033,7]
[311114290,1704915044128,-151.0,0.00033,7]
[311114291,1704915044137,-151.0,0.00033,7]
[311114292,1704915044146,-151.0,0.00033,7]
[311114293,1704915044155,-151.0,0.00033,7]
[311114294,1704915044164,-151.0,0.00033,7]
[311114295,1704915044173,-151.0,0.00033,7]
[311114296,1704915044182,-151.0,0.00033,7]
[311114297,1704915044191,-151.0,0.00033,7]
[311114298,1704915044201,-500.0,0.00033,2]
[311114299,1704915044210,-153.196501,0.00033,7]
[311114300,1704915044219,-151.0,0.00033,7]
[311114301,1704915044228,-151.0,0.00033,7]
[311114302,1704915044237,-151.0,0.00033,7]
[311114303,1704915044246,-151.0,0.00033,7]
[311114304,1704915044255,-151.0,0.00033,7]
[311114305,1704915044264,-151.0,0.00033,7]
[311114306,1704915044273,-151.0,0.00033,7]
[311114307,1704915044282,-537.326573,0.00033,7]
[311114308,1704915044293,-537.326573,0.00033,7]
[311114309,1704915044304,-151.0,0.00033,7]
[311114310,1704915044313,-369.59,0.00033022,2]
[311114311,1704915044322,-3359.63528439,0.00033024,2]
[311114312,1704915044331,-627.98,0.00033098,2]
[311114313,1704915044340,-835.22,0.00033098,2]
[311114314,1704915044349,-160.42,0.00033115,2]
[311114315,1704915044358,-500.0,0.00033116,2]
[311114316,1704915044367,-1000.0,0.00033118,2]
[311114317,1704915044376,-369.59,0.00033186,2]
[311114319,1704915044385,-153.84,0.00033215,2]
[311114321,1704915044394,-549.98,0.00033243,2]
[311114323,1704915044403,-151.74166023,0.00033321,2]
[311114325,1704915044412,-369.59,0.00033351,2]
[311114327,1704915044421,-3359.63528439,0.00033378,2]
[311114329,1704915044431,-804.05971102,0.00033446,2]
[311114330,1704915044441,-199.49540766,0.0003346,2]
[311114331,1704915044450,-500.0,0.0003347,2]
[311114332,1704915044459,-369.59,0.00033515,2]
[311114333,1704915044468,-596.221,0.0003356,2]
[311114334,1704915044477,-1139.0,0.0003356,2]
[311114335,1704915044487,-1930.0,0.0003356,2]
[311114336,1704915044496,-318.0,0.0003356,2]
[311114337,1704915044505,-880.0,0.0003356,2]
[311114338,1704915044514,-19668.0,0.0003356,2]
[311114339,1704915044523,-4160.0,0.0003356,2]
[311114340,1704915044532,-1269.189,0.0003356,2]
[311114341,1704915044542,-2900.0,0.0003356,2]
[311114342,1704915044554,-2269.0,0.0003356,2]
[311114343,1704915044563,-1026.0,0.0003356,2]
[311114344,1704915044572,-1853.751,0.0003356,2]
[311114345,1704915044581,-834.0,0.0003356,2]
[311114346,1704915044590,-634.796,0.0003356,2]
[311114347,1704915044600,-272.073,0.0003356,2]
[311114348,1704915044609,-1234.0,0.0003356,2]
[311114349,1704915044618,-1251.0,0.0003356,2]
[311114350,1704915044627,-343.74,0.00033565,2]
[311114351,1704915044636,-678.88688985,0.00033584,2]
[311114352,1704915044645,-2740.85665266,0.00033622,5]
[311114353,1704915044654,-369.59,0.00033679,2]
[311114354,1704915044663,-857.49,0.00033724,2]
[311114355,1704915044672,-800.0,0.00033727,5]
[311114356,1704915044682,-151.74166023,0.00033731,2]
[311114357,1704915044691,-3359.63528439,0.00033732,2]
[311114358,1704915044700,-165.76643265,0.000338,2]
[311114359,1704915044710,-816.68595077,0.000338,2]
[311114360,1704915044719,-579.94535106,0.000338,2]
[311114361,1704915044728,-500.0,0.00033823,2]
[311114362,1704915044737,-369.59,0.00033844,2]
[311114363,1704915044746,-160.42,0.00033859,2]
[311114364,1704915044756,-326.96087195,0.0003389,2]
[311114365,1704915044765,-2743.94,0.0003389,2]
[311114366,1704915044774,-167.15,0.00033891,2]
[311114367,1704915044783,-100000.0,0.000339,2]
[311114368,1704915044792,-14789.1868,0.000339,2]
[311114369,1704915044804,-151.0,0.000339,7]
[311114370,1704915044813,-151.0,0.000339,7]
[311114371,1704915044822,-151.0,0.000339,7]
[311114372,1704915044831,-157.766178,0.000339,7]
[311114373,1704915044840,-178.43967574,0.000339,2]
[311114374,1704915044849,-151.0,0.000339,7]
[311114375,1704915044858,-151.0,0.000339,7]
[311114376,1704915044867,-169.053508,0.000339,7]
[311114377,1704915044876,-169.053508,0.000339,7]
[311114378,1704915044885,-938.97,0.00033925,2]
[311114379,1704915044894,-400.57,0.00033925,2]
[311114380,1704915044903,-2743.94,0.0003399,2]
[311114381,1704915044912,-151.0,0.00033996,7]
[311114382,1704915044921,-151.0,0.00033996,7]
[311114383,1704915044930,-151.0,0.00033996,7]
[311114384,1704915044939,-1914.91069126,0.00033996,4]
[311114385,1704915044948,-531.87255427,0.00033996,4]
[311114386,1704915044957,-3849.91637634,0.00033996,4]
[311114387,1704915044966,-472.50263285,0.00033996,4]
[311114388,1704915044975,-158.01051409,0.00033996,4]
[311114389,1704915044985,-155.0,0.00033996,4]
[311114390,1704915044994,-198.87132187,0.00033996,4]
[311114391,1704915045003,-5086.00860306,0.00033996,4]
[311114392,1704915045013,-301.79110902,0.00033996,2]
[311114393,1704915045022,-171.95545876,0.00033996,4]
[311114394,1704915045031,-155.0,0.00033996,4]
[311114395,1704915045039,-162.54625844,0.00033996,4]
[311114396,1704915045050,-181.81200294,0.00033996,4]
[311114397,1704915045060,-459.15887984,0.00033996,4]
[311114398,1704915045070,-259.45999404,0.00033996,4]
[311114399,1704915045079,-206.01974909,0.00033996,4]
[311114400,1704915045088,-285.729364,0.00033996,4]
[311114401,1704915045098,-420.96301359,0.00033996,10]
[311114402,1704915045107,-214.08376804,0.00033996,4]
[311114403,1704915045117,-155.0,0.00033996,4]
[311114404,1704915045126,-523.86841998,0.00033996,4]
[311114405,1704915045135,-416.64456604,0.00033996,4]
[311114407,1704915045144,-756.68956947,0.00033996,4]
[311114409,1704915045153,-2279.52050054,0.00033996,4]
[311114411,1704915045162,-232.81775863,0.00033996,4]
[311114413,1704915045172,-220.06189485,0.00033996,4]
[311114415,1704915045182,-659.10506164,0.00033996,4]
[311114417,1704915045193,-183.90716066,0.00033996,4]
[311114419,1704915045203,-2303.07507198,0.00033996,4]
[311114421,1704915045213,-270.15655968,0.00033996,2]
[311114422,1704915045224,-932.19897451,0.00033997,2]
[311114423,1704915045235,-202.53914952,0.00033997,4]
[311114424,1704915045245,-383.84892023,0.00033998,4]
[311114425,1704915045254,-2596.79120869,0.00033998,2]
[311114426,1704915045263,-1032.25382775,0.00033999,4]
[311114427,1704915045272,-1004.83325173,0.00033999,2]
[311114428,1704915045281,-300.0,0.00033999,2]
[311114429,1704915045290,-151.0,0.00034,7]
[311114430,1704915045300,-151.0,0.00034,7]
[311114431,1704915045309,-151.0,0.00034,7]
[311114432,1704915045318,-151.0,0.00034,7]
[311114433,1704915045327,-151.0,0.00034,7]
[311114434,1704915045336,-262692.95795008,0.00034,2]
[311114435,1704915045345,-177.26456208,0.00034,2]
[311114436,1704915045354,-200.0,0.00034,2]
[311114437,1704915045363,-1244.13953452,0.00034,10]
[311114438,1704915045377,-3755.86046548,0.00034,10]
[311114439,1704915045387,-1000.0,0.00034,4]
[311114440,1704915045397,-172.572655,0.00034,7]
[311114441,1704915045406,-161.544194,0.00034,7]
[311114442,1704915045415,-161.544194,0.00034,7]
[311114443,1704915045424,-151.0,0.00034,7]
[311114444,1704915045433,-151.0,0.00034,7]
[311114445,1704915045442,-151.0,0.00034,7]
[311114446,1704915045450,-184.095286,0.00034,7]
[311114447,1704915045460,-151.0,0.00034,7]
[311114448,1704915045469,-151.0,0.00034,7]
[311114449,1704915045478,-169.053508,0.00034,7]
[311114450,1704915045489,-169.053508,0.00034,7]
[311114451,1704915045498,-246.795846,0.00034,7]
[311114452,1704915045507,-151.0,0.00034,7]
[311114453,1704915045516,-500.0,0.00034,3]
[311114454,1704915045526,-151.0,0.00034,7]
[311114455,1704915045535,-151.0,0.00034,7]
[311114456,1704915045544,-151.0,0.00034,7]
[311114457,1704915045553,-304.42834,0.00034,2]
[311114458,1704915045563,-151.0,0.00034,7]
[311114459,1704915045572,-151.0,0.00034,7]
[311114460,1704915045581,-151.0,0.00034,7]
[311114461,1704915045590,-151.0,0.00034,7]
[311114462,1704915045600,-151.0,0.00034,7]
[311114463,1704915045609,-537.326573,0.00034,7]
[311114464,1704915045618,-537.326573,0.00034,7]
[311114465,1704915045627,-151.0,0.00034,7]
[311114466,1704915045637,-4196.85510861,0.00034,3]
[311114467,1704915045649,-10651.07874758,0.00034,3]
[311114468,1704915045660,-6609.05789995,0.00034,3]
[311114469,1704915045681,-774.06088965,0.00034,3]
[311114470,1704915045690,-369.59,0.00034008,2]
[311114471,1704915045700,-3359.63528439,0.00034086,2]
[311114472,1704915045709,-206.0,0.00034115,19]
[311114473,1704915045718,-151.74166023,0.00034141,2]
[311114474,1704915045727,-153.84,0.00034164,2]
[311114475,1704915045737,-369.59,0.00034172,2]
[311114476,1704915045746,-500.0,0.00034177,2]
[311114477,1704915045755,-1185.5910665,0.00034178,6]
[311114478,1704915045764,-369.59,0.00034337,2]
[311114479,1704915045773,-3359.63528439,0.00034441,2]
[311114480,1704915045783,-187.0,0.00034451,2]
[311114481,1704915045792,-157.0,0.00034451,2]
[311114482,1704915045802,-1221.67914976,0.00034459,2]
[311114483,1704915045811,-632.70446508,0.00034518,6]
[311114484,1704915045828,-2108.15218758,0.00034518,6]
[311114485,1704915045837,-491.249554,0.0003452,2]
[311114486,1704915045846,-429.843359,0.0003452,2]
[311114487,1704915045855,-1002.33214,0.0003452,2]
[311114488,1704915045865,-1804.197852,0.0003452,2]
[311114489,1704915045877,-300.25551108,0.0003452,2]
[311114490,1704915045893,-513.04457663,0.0003452,2]
[311114491,1704915045904,-589.96490829,0.0003452,2]
[311114492,1704915045913,-2310.88583949,0.0003452,2]
[311114493,1704915045926,-703.13958551,0.0003452,2]
[311114494,1704915045935,-821.42229008,0.00034521,2]
[311114495,1704915045948,-3928.64770992,0.00034521,2]
[311114496,1704915045958,-500.0,0.0003453,2]
[311114497,1704915045967,-151.74166023,0.00034552,2]
[311114499,1704915045976,-160.42,0.00034603,2]
[311114500,1704915045986,-180.0,0.00034658,2]
[311114501,1704915045995,-7371.8962426,0.0003468,30]
[311114502,1704915046006,-34934.88859096,0.0003468,30]
[311114503,1704915046015,-857.49,0.00034703,2]
[311114504,1704915046024,-736.874331,0.00034794,2]
[311114505,1704915046033,-644.765039,0.00034794,2]
[311114507,1704915046042,-1503.49821,0.00034794,2]
[311114509,1704915046053,-2706.296778,0.00034794,2]
[311114511,1704915046062,-2104.897494,0.00034794,2]
[311114513,1704915046071,-3077.23360486,0.00034794,2]
[311114515,1704915046082,-432.81910037,0.00034794,2]
[311114517,1704915046093,-657.26242987,0.00034794,2]
[311114519,1704915046104,-353.7230029,0.00034794,2]
[311114521,1704915046113,-790.77699709,0.00034795,2]
[311114522,1704915046124,-288.39177068,0.00034795,2]
[311114526,1704915046228,-1702.49340054,0.00030189,4]
[311114528,1704915046238,-2280.46651662,0.00034795,2]
[311114530,1704915046247,-678.88688985,0.00034807,2]
[311114532,1704915046256,-500.0,0.00034884,2]
[311114534,1704915046265,-2838.07775787,0.000349,4]
[311114536,1704915046274,-3725.89010752,0.000349,2]
[311114539,1704915046285,-361.040035,0.000349,2]
[311114541,1704915046299,-326.1400413,0.000349,2]
[311114543,1704915046307,-772.4599587,0.000349,2]
[311114545,1704915046320,-462.611,0.000349,2]
[311114547,1704915046332,-1421.08977258,0.000349,2]
[311114550,1704915046342,-2656.16073112,0.000349,2]
[311114552,1704915046352,-2085.92270806,0.000349,2]
[311114585,1704915046765,-510.5268,0.000349,2]
[311114586,1704915046777,-59.71122306,0.000349,2]
[311114587,1704915046786,-2656.16073112,0.000349,2]
[311114588,1704915046796,-2218.72804582,0.000349,3]
[311114589,1704915046807,-9284.7472659,0.000349,3]
[311114590,1704915046818,-2821.63928828,0.000349,3]
[311114591,1704915046827,-4297.89595676,0.00034907,10]
[311114592,1704915046838,-3606.93070898,0.00034907,10]
[311114593,1704915046873,-155.0,0.00033799,2]
[311114594,1704915046881,-1363.29889614,0.00034907,10]
[311114595,1704915046890,-26358.97385507,0.00034907,10]
[311114597,1704915213946,206.0,0.00022022,2]
[311114599,1704915567901,5184.28682441,0.00022022,2]
[311114600,1704915568860,157.39532955,0.00022022,2]
[311114601,1704915569735,1022.68700567,0.00022022,2]
[311114602,1704915570532,2182.38097611,0.00022022,2]
[311114603,1704915570556,828.89,0.00022022,2]
[311114604,1704915570580,828.89,0.00022022,2]
[311114605,1704915570605,828.89,0.00022022,2]
[311114606,1704915570629,828.89,0.00022022,2]
[311114607,1704915570658,4582.88377046,0.00022022,2]
[311114608,1704915571956,5246.00622954,0.00021912,2]
[311114609,1704915571979,11816.52211227,0.00021912,2]
[311114610,1704915573141,282.36378265,0.00022022,2]
[311114611,1704915573428,4697.35245169,0.00022022,2]
[311114612,1704915573839,158.20637248,0.00022022,2]
[311114613,1704915574279,7414.76052604,0.00022022,2]
[311114614,1704915574309,498.37671322,0.00021361,2]
[311114615,1704915574971,845.481875,0.00022022,2]
[311114616,1704915576125,882.89324695,0.00022022,2]
[311114617,1704915577436,1891.38317566,0.00022022,2]
[311114618,1704915578137,155.0,0.00022022,2]
[311114619,1704915578233,1220.38848696,0.00022022,2]
[311114620,1704915578347,155.0,0.0002,2]
[311114621,1704915578602,531.67628362,0.00022022,2]
[311114622,1704915578989,1595.36712932,0.00017618,2]
[311114623,1704915579590,155.0,0.00022022,2]
[311114624,1704915583667,160.0,0.00022022,2]
[311114625,1704915585369,292.536992,0.00022022,2]
[311114626,1704915589665,5184.28682441,0.00022022,2]
[311114627,1704915593100,282.36378265,0.00022022,2]
[311114628,1704915594226,4084.95222772,0.00022022,2]
[311114629,1704915594964,383.9779648,0.00022022,2]
[311114630,1704915595943,631.67168294,0.00022022,2]
[311114631,1704915597610,155.0,0.00022022,2]
[311114632,1704915598463,155.0,0.0002,2]
[311114633,1704915602589,531.67628362,0.00022022,2]
[311114634,1704915609671,5184.28682441,0.00022022,2]
[311114635,1704915617111,176.22043603,0.00022022,2]
[311114636,1704915618346,285.05979037,0.0002,2]
[311114637,1704915620599,531.67628362,0.00022022,2]
[311114638,1704915629821,5279.51689318,0.00022022,2]
[311114639,1704915640597,631.16416765,0.00022022,2]
[311114640,1704915653480,587.166525,0.00022977,2]
[311114641,1704915743622,272.06972591,0.00022984,2]
[311114642,1704915749539,272.0697259,0.00022985,2]
[311114643,1704915755632,272.0697259,0.00022985,2]
[311114644,1704915756812,152.00783009,0.00022984,2]
[311114645,1704915842222,188.82,0.00016712,2]
[311114646,1704916011130,482.26451132,0.00022939,2]
[311114648,1704916127266,321.50967422,0.00022944,2]
[311114649,1704916159129,150.0,0.00022021,2]
[311114650,1704916160401,150.0,0.00022569,2]
[311114651,1704916161003,170.87,0.00020622,2]
[311114652,1704916227662,262.55730004,0.00022014,2]
[311114666,1704916231388,-473.62078422,0.00023006,2]
[311114667,1704916231399,-280.72891337,0.00023006,2]
[311114668,1704916231646,-155.0,0.00023006,2]
[311114669,1704916231655,-487.02993234,0.00023007,2]
[311114670,1704916231665,-742.48175089,0.00023007,2]
[311114671,1704916231940,-964.04449456,0.00023007,2]
[311114672,1704916231950,-3185.89838635,0.00023008,2]
[311114673,1704916231960,-1000.0,0.00023008,2]
[311114674,1704916231970,-246.75786482,0.00023008,2]
[311114675,1704916231979,-729.30403692,0.00023009,2]
[311114676,1704916231988,-155.0,0.00023009,2]
[311114677,1704916231997,-10850.01762246,0.00023009,2]
[311114678,1704916232009,-7770.70671844,0.00023009,2]
[311114679,1704916232019,-230.2259009,0.0002301,2]